[Event "TePe Sigeman & Co Chess Tournament 2025"]
[Site "Elite Plaza Hotel, Gustav Adolfs Torg 49, Malmo, Sweden"]
[Date "2025.05.20"]
[Round "1.1"]
[White "Tan, Zhongyi"]
[Black "Sindarov, Javokhir"]
[Result "0-1"]
[TimeControl "90 minutes for 40 moves + 30 minutes for the rest of the game + 30 seconds per move from move one."]
[WhiteTitle "GM"]
[BlackTitle "GM"]
[WhiteFideId "8603642"]
[BlackFideId "14205483"]
[WhiteElo "2536"]
[BlackElo "2706"]

1. d4 {[%clk 01:30:56]} {[%emt 00:00:03]} Nf6 {[%clk 01:30:51]} {[%emt
00:00:09]} 2. c4 {[%clk 01:31:14]} {[%emt 00:00:12]} g6 {[%clk 01:31:14]}
{[%emt 00:00:07]} 3. Nc3 {[%clk 01:31:34]} {[%emt 00:00:11]} Bg7 {[%clk
01:31:39]} {[%emt 00:00:05]} 4. g3 {[%clk 01:31:41]} {[%emt 00:00:23]} O-O
{[%clk 01:24:46]} {[%emt 00:07:22]} 5. Bg2 {[%clk 01:32:04]} {[%emt 00:00:08]}
d6 {[%clk 01:25:12]} {[%emt 00:00:05]} 6. Nf3 {[%clk 01:28:45]} {[%emt
00:03:48]} c6 {[%clk 01:25:35]} {[%emt 00:00:07]} 7. O-O {[%clk 01:28:58]}
{[%emt 00:00:17]} Qb6 {[%clk 01:26:00]} {[%emt 00:00:05]} 8. h3 {[%clk
01:26:14]} {[%emt 00:03:13]} Qa6 {[%clk 01:25:42]} {[%emt 00:00:49]} 9. b3
{[%clk 01:19:17]} {[%emt 00:07:27]} b5 {[%clk 01:26:06]} {[%emt 00:00:07]} 10.
Nd2 {[%clk 01:14:05]} {[%emt 00:05:41]} Bb7 {[%clk 01:18:00]} {[%emt 00:08:36]}
11. Bb2 {[%clk 01:13:36]} {[%emt 00:00:58]} Nbd7 {[%clk 01:15:23]} {[%emt
00:03:08]} 12. e4 {[%clk 01:00:09]} {[%emt 00:13:57]} bxc4 {[%clk 01:08:48]}
{[%emt 00:07:05]} 13. Nxc4 {[%clk 01:00:27]} {[%emt 00:00:11]} d5 {[%clk
01:08:51]} {[%emt 00:00:27]} 14. Ne5 {[%clk 00:56:59]} {[%emt 00:03:58]} e6
{[%clk 01:01:41]} {[%emt 00:07:41]} 15. Na4 {[%clk 00:53:54]} {[%emt 00:03:36]}
dxe4 {[%clk 00:56:00]} {[%emt 00:06:11]} 16. Qc2 {[%clk 00:46:42]} {[%emt
00:07:41]} Rac8 {[%clk 00:43:55]} {[%emt 00:12:35]} 17. Rfc1 {[%clk 00:43:21]}
{[%emt 00:03:51]} Ba8 {[%clk 00:33:37]} {[%emt 00:10:49]} 18. Bf1 {[%clk
00:30:08]} {[%emt 00:13:42]} Qa5 {[%clk 00:23:40]} {[%emt 00:10:28]} 19. Nc5
{[%clk 00:30:31]} {[%emt 00:00:07]} Nxc5 {[%clk 00:20:58]} {[%emt 00:03:12]} 20.
Nc4 {[%clk 00:30:42]} {[%emt 00:00:19]} Qb4 {[%clk 00:15:43]} {[%emt 00:05:44]}
21. Bc3 {[%clk 00:30:43]} {[%emt 00:00:29]} Qb5 {[%clk 00:14:46]} {[%emt
00:01:27]} 22. Nd6 {[%clk 00:29:32]} {[%emt 00:01:40]} Qb6 {[%clk 00:14:48]}
{[%emt 00:00:29]} 23. Nxc8 {[%clk 00:28:34]} {[%emt 00:01:28]} Rxc8 {[%clk
00:15:13]} {[%emt 00:00:05]} 24. dxc5 {[%clk 00:28:58]} {[%emt 00:00:06]} Qxc5
{[%clk 00:15:37]} {[%emt 00:00:06]} 25. Bxf6 {[%clk 00:24:49]} {[%emt
00:04:39]} Qxc2 {[%clk 00:15:50]} {[%emt 00:00:18]} 26. Rxc2 {[%clk 00:25:05]}
{[%emt 00:00:14]} Bxf6 {[%clk 00:16:13]} {[%emt 00:00:06]} 27. Re1 {[%clk
00:25:05]} {[%emt 00:00:29]} c5 {[%clk 00:11:44]} {[%emt 00:05:00]} 28. Bg2
{[%clk 00:25:20]} {[%emt 00:00:14]} Bb7 {[%clk 00:12:10]} {[%emt 00:00:05]} 29.
Bxe4 {[%clk 00:25:24]} {[%emt 00:00:26]} Ba6 {[%clk 00:12:36]} {[%emt
00:00:04]} 30. Rd1 {[%clk 00:20:18]} {[%emt 00:05:34]} Bb5 {[%clk 00:06:27]}
{[%emt 00:06:40]} 31. a4 {[%clk 00:11:33]} {[%emt 00:09:15]} Be8 {[%clk
00:06:14]} {[%emt 00:00:43]} 32. Rd6 {[%clk 00:11:58]} {[%emt 00:00:05]} Rc7
{[%clk 00:02:07]} {[%emt 00:04:38]} 33. Rc4 {[%clk 00:07:02]} {[%emt 00:05:25]}
Bd7 {[%clk 00:00:47]} {[%emt 00:01:51]} 34. Ra6 {[%clk 00:05:59]} {[%emt
00:01:32]} Bd4 {[%clk 00:00:49]} {[%emt 00:00:28]} 35. Kg2 {[%clk 00:04:21]}
{[%emt 00:02:07]} e5 {[%clk 00:00:59]} {[%emt 00:00:22]} 36. Bd5 {[%clk
00:04:25]} {[%emt 00:00:25]} Bf5 {[%clk 00:01:06]} {[%emt 00:00:24]} 37. Rd6
{[%clk 00:04:29]} {[%emt 00:00:25]} Kf8 {[%clk 00:01:14]} {[%emt 00:00:23]} 38.
Rd8+ {[%clk 00:02:33]} {[%emt 00:02:26]} Ke7 {[%clk 00:01:19]} {[%emt
00:00:25]} 39. Rb8 {[%clk 00:02:55]} {[%emt 00:00:07]} Kd6 {[%clk 00:01:21]}
{[%emt 00:00:28]} 40. Ba8 {[%clk 00:02:17]} {[%emt 00:01:08]} a5 {[%clk
00:00:39]} {[%emt 00:01:12]} 41. Rb6+ {[%clk 00:29:41]} {[%emt 00:03:06]} Ke7
{[%clk 00:30:50]} {[%emt 00:00:19]} 42. Ra6 {[%clk 00:29:07]} {[%emt 00:01:04]}
Rc8 {[%clk 00:28:09]} {[%emt 00:03:12]} 43. Ra7+ {[%clk 00:25:33]} {[%emt
00:04:03]} Kd6 {[%clk 00:28:08]} {[%emt 00:00:27]} 44. Bf3 {[%clk 00:24:46]}
{[%emt 00:01:21]} Bd3 {[%clk 00:22:43]} {[%emt 00:05:55]} 45. Ra6+ {[%clk
00:20:12]} {[%emt 00:05:04]} Ke7 {[%clk 00:22:09]} {[%emt 00:01:03]} 46. Bd5
{[%clk 00:16:44]} {[%emt 00:03:59]} Rd8 {[%clk 00:14:03]} {[%emt 00:08:36]} 47.
Ra7+ {[%clk 00:16:51]} {[%emt 00:00:23]} Kf8 {[%clk 00:11:25]} {[%emt
00:03:08]} 48. Bxf7 {[%clk 00:14:44]} {[%emt 00:02:37]} Rd6 {[%clk 00:11:34]}
{[%emt 00:00:21]} 49. f3 {[%clk 00:11:00]} {[%emt 00:04:14]} e4 {[%clk
00:11:24]} {[%emt 00:00:39]} 50. f4 {[%clk 00:09:40]} {[%emt 00:01:50]} e3
{[%clk 00:10:49]} {[%emt 00:01:06]} 51. Kf3 {[%clk 00:07:10]} {[%emt 00:03:00]}
e2 {[%clk 00:09:31]} {[%emt 00:01:47]} 52. Rc1 {[%clk 00:07:33]} {[%emt
00:00:07]} c4 {[%clk 00:05:12]} {[%emt 00:04:50]} 53. Rc7 {[%clk 00:06:47]}
{[%emt 00:01:16]} Bb6 {[%clk 00:05:17]} {[%emt 00:00:25]} 54. Rb7 {[%clk
00:06:58]} {[%emt 00:00:19]} Be4+ {[%clk 00:05:16]} {[%emt 00:00:31]} 55. Kxe2
{[%clk 00:05:22]} {[%emt 00:02:05]} Bxb7 {[%clk 00:05:37]} {[%emt 00:00:10]} 56.
Bxc4 {[%clk 00:05:48]} {[%emt 00:00:04]} Bg2 {[%clk 00:05:58]} {[%emt
00:00:09]} 57. h4 {[%clk 00:05:58]} {[%emt 00:00:20]} Bh3 {[%clk 00:06:19]}
{[%emt 00:00:07]} 58. Kf3 {[%clk 00:05:23]} {[%emt 00:01:07]} h5 {[%clk
00:06:32]} {[%emt 00:00:17]} 59. Bb5 {[%clk 00:03:58]} {[%emt 00:01:55]} Rd2
{[%clk 00:06:33]} {[%emt 00:00:28]} 60. Ke4 {[%clk 00:02:37]} {[%emt 00:01:52]}
Bf5+ {[%clk 00:06:47]} {[%emt 00:00:15]} 61. Kd4 {[%emt 00:00:40]} 0-1

[Event "TePe Sigeman & Co Chess Tournament 2025"]
[Site "Elite Plaza Hotel, Gustav Adolfs Torg 49, Malmo, Sweden"]
[Date "2025.05.20"]
[Round "1.2"]
[White "Erdogmus, Yagiz Kaan"]
[Black "Grandelius, Nils"]
[Result "1/2-1/2"]
[TimeControl "90 minutes for 40 moves + 30 minutes for the rest of the game + 30 seconds per move from move one."]
[WhiteTitle "GM"]
[BlackTitle "GM"]
[WhiteFideId "44599790"]
[BlackFideId "1710400"]
[WhiteElo "2618"]
[BlackElo "2637"]

1. e4 {[%clk 01:30:58]} {[%emt 00:00:02]} e5 {[%clk 01:30:27]} {[%emt
00:00:33]} 2. Nf3 {[%clk 01:31:23]} {[%emt 00:00:05]} Nc6 {[%clk 01:30:35]}
{[%emt 00:00:21]} 3. Bb5 {[%clk 01:31:49]} {[%emt 00:00:05]} a6 {[%clk
01:30:15]} {[%emt 00:00:50]} 4. Bxc6 {[%clk 01:32:12]} {[%emt 00:00:07]} dxc6
{[%clk 01:30:36]} {[%emt 00:00:08]} 5. O-O {[%clk 01:32:39]} {[%emt 00:00:03]}
Bd6 {[%clk 01:29:10]} {[%emt 00:01:55]} 6. d4 {[%clk 01:33:00]} {[%emt
00:00:09]} exd4 {[%clk 01:28:30]} {[%emt 00:01:10]} 7. Qxd4 {[%clk 01:33:27]}
{[%emt 00:00:04]} f6 {[%clk 01:28:47]} {[%emt 00:00:12]} 8. Nbd2 {[%clk
01:33:50]} {[%emt 00:00:07]} Be6 {[%clk 01:25:39]} {[%emt 00:03:37]} 9. b3
{[%clk 01:33:15]} {[%emt 00:01:06]} Ne7 {[%clk 01:21:09]} {[%emt 00:04:59]} 10.
Nc4 {[%clk 01:33:29]} {[%emt 00:00:16]} Bxc4 {[%clk 01:14:33]} {[%emt
00:07:06]} 11. Qxc4 {[%clk 01:33:57]} {[%emt 00:00:02]} Qd7 {[%clk 01:14:31]}
{[%emt 00:00:31]} 12. Bb2 {[%clk 01:33:56]} {[%emt 00:00:31]} Ng6 {[%clk
01:11:27]} {[%emt 00:03:33]} 13. Nd4 {[%clk 01:12:57]} {[%emt 00:21:29]} O-O-O
{[%clk 01:06:12]} {[%emt 00:05:45]} 14. Nf5 {[%clk 01:04:12]} {[%emt 00:09:16]}
Be5 {[%clk 00:57:10]} {[%emt 00:09:31]} 15. Bxe5 {[%clk 01:04:13]} {[%emt
00:00:30]} Nxe5 {[%clk 00:57:27]} {[%emt 00:00:13]} 16. Qc3 {[%clk 01:02:00]}
{[%emt 00:02:43]} g6 {[%clk 00:50:37]} {[%emt 00:07:20]} 17. Ne3 {[%clk
01:01:48]} {[%emt 00:00:41]} Qe6 {[%clk 00:49:34]} {[%emt 00:01:34]} 18. Rae1
{[%clk 00:50:24]} {[%emt 00:11:55]} Rhe8 {[%clk 00:43:22]} {[%emt 00:06:41]} 19.
f4 {[%clk 00:40:22]} {[%emt 00:10:32]} Nd7 {[%clk 00:40:58]} {[%emt 00:02:53]}
20. Nc4 {[%clk 00:39:42]} {[%emt 00:01:11]} b6 {[%clk 00:28:23]} {[%emt
00:13:05]} 21. a4 {[%clk 00:27:07]} {[%emt 00:13:05]} Kb7 {[%clk 00:24:52]}
{[%emt 00:04:01]} 22. b4 {[%clk 00:19:06]} {[%emt 00:08:31]} Qe7 {[%clk
00:23:36]} {[%emt 00:01:46]} 23. e5 {[%clk 00:16:20]} {[%emt 00:03:16]} fxe5
{[%clk 00:22:13]} {[%emt 00:01:52]} 24. fxe5 {[%clk 00:16:27]} {[%emt
00:00:24]} a5 {[%clk 00:14:31]} {[%emt 00:08:12]} 25. bxa5 {[%clk 00:08:14]}
{[%emt 00:08:43]} Qc5+ {[%clk 00:14:53]} {[%emt 00:00:07]} 26. Re3 {[%clk
00:08:35]} {[%emt 00:00:09]} Nxe5 {[%clk 00:12:48]} {[%emt 00:02:34]} 27. Nxe5
{[%clk 00:08:37]} {[%emt 00:00:28]} Qxc3 {[%clk 00:13:14]} {[%emt 00:00:05]} 28.
Rxc3 {[%clk 00:09:04]} {[%emt 00:00:03]} Rxe5 {[%clk 00:13:39]} {[%emt
00:00:05]} 29. axb6 {[%clk 00:09:30]} {[%emt 00:00:04]} cxb6 {[%clk 00:13:40]}
{[%emt 00:00:28]} 30. Rf7+ {[%clk 00:08:25]} {[%emt 00:01:35]} Ka6 {[%clk
00:13:46]} {[%emt 00:00:24]} 31. Rxc6 {[%clk 00:05:13]} {[%emt 00:03:43]} Rd2
{[%clk 00:10:20]} {[%emt 00:03:55]} 32. Kf1 {[%clk 00:04:01]} {[%emt 00:01:42]}
Rd1+ {[%clk 00:08:09]} {[%emt 00:02:41]} 33. Kf2 {[%clk 00:04:27]} {[%emt
00:00:04]} Rd2+ {[%clk 00:08:33]} {[%emt 00:00:05]} 34. Kf1 {[%clk 00:03:44]}
{[%emt 00:01:13]} Rd1+ {[%clk 00:08:46]} {[%emt 00:00:17]} 35. Kf2 {[%clk
00:04:08]} {[%emt 00:00:06]} Rd2+ {[%clk 00:09:11]} {[%emt 00:00:04]} 36. Kf1
{[%clk 00:04:32]} {[%emt 00:00:06]} Rd1+ {[%clk 00:09:34]} {[%emt 00:00:07]}
1/2-1/2

[Event "TePe Sigeman & Co Chess Tournament 2025"]
[Site "Elite Plaza Hotel, Gustav Adolfs Torg 49, Malmo, Sweden"]
[Date "2025.05.20"]
[Round "1.3"]
[White "Rapport, Richard"]
[Black "L'Ami, Erwin"]
[Result "1-0"]
[TimeControl "90 minutes for 40 moves + 30 minutes for the rest of the game + 30 seconds per move from move one."]
[WhiteTitle "GM"]
[BlackTitle "GM"]
[WhiteFideId "738590"]
[BlackFideId "1007998"]
[WhiteElo "2722"]
[BlackElo "2621"]

1. c4 {[%clk 01:30:11]} {[%emt 00:00:48]} e5 {[%clk 01:30:14]} {[%emt
00:00:46]} 2. Nc3 {[%clk 01:27:47]} {[%emt 00:02:55]} Bb4 {[%clk 01:30:14]}
{[%emt 00:00:30]} 3. Nd5 {[%clk 01:22:47]} {[%emt 00:05:30]} Be7 {[%clk
01:30:20]} {[%emt 00:00:23]} 4. Nf3 {[%clk 01:21:36]} {[%emt 00:01:41]} d6
{[%clk 01:28:12]} {[%emt 00:02:38]} 5. d4 {[%clk 01:21:39]} {[%emt 00:00:27]}
Nc6 {[%clk 01:24:41]} {[%emt 00:04:00]} 6. g3 {[%clk 01:12:39]} {[%emt
00:09:32]} Nf6 {[%clk 01:19:10]} {[%emt 00:06:00]} 7. Bg2 {[%clk 01:10:15]}
{[%emt 00:02:53]} Nxd5 {[%clk 01:08:42]} {[%emt 00:10:59]} 8. cxd5 {[%clk
01:10:15]} {[%emt 00:00:31]} Nxd4 {[%clk 01:09:04]} {[%emt 00:00:08]} 9. Nxd4
{[%clk 01:10:35]} {[%emt 00:00:11]} exd4 {[%clk 01:09:25]} {[%emt 00:00:08]} 10.
Qxd4 {[%clk 01:10:41]} {[%emt 00:00:24]} Bf6 {[%clk 01:09:41]} {[%emt
00:00:14]} 11. Qd3 {[%clk 00:59:23]} {[%emt 00:11:48]} O-O {[%clk 01:06:17]}
{[%emt 00:03:54]} 12. O-O {[%clk 00:57:08]} {[%emt 00:02:43]} Re8 {[%clk
01:02:03]} {[%emt 00:04:46]} 13. Re1 {[%clk 00:57:17]} {[%emt 00:00:22]} g6
{[%clk 00:57:24]} {[%emt 00:05:09]} 14. Rb1 {[%clk 00:53:20]} {[%emt 00:04:27]}
Bf5 {[%clk 00:44:45]} {[%emt 00:13:09]} 15. e4 {[%clk 00:53:20]} {[%emt
00:00:30]} Bd7 {[%clk 00:44:53]} {[%emt 00:00:21]} 16. Bf4 {[%clk 00:44:32]}
{[%emt 00:09:18]} a5 {[%clk 00:38:42]} {[%emt 00:06:42]} 17. h4 {[%clk
00:42:38]} {[%emt 00:02:22]} a4 {[%clk 00:35:37]} {[%emt 00:03:37]} 18. Qd2
{[%clk 00:42:01]} {[%emt 00:01:08]} b6 {[%clk 00:28:17]} {[%emt 00:07:49]} 19.
Rbc1 {[%clk 00:32:01]} {[%emt 00:10:30]} Ra5 {[%clk 00:26:11]} {[%emt
00:02:36]} 20. Be3 {[%clk 00:31:33]} {[%emt 00:00:57]} h5 {[%clk 00:17:00]}
{[%emt 00:09:41]} 21. Rc2 {[%clk 00:30:41]} {[%emt 00:01:23]} a3 {[%clk
00:12:53]} {[%emt 00:04:37]} 22. b4 {[%clk 00:28:21]} {[%emt 00:02:50]} Ra7
{[%clk 00:12:55]} {[%emt 00:00:28]} 23. Bd4 {[%clk 00:21:27]} {[%emt 00:07:24]}
Kh7 {[%clk 00:12:16]} {[%emt 00:01:09]} 24. f4 {[%clk 00:19:20]} {[%emt
00:02:37]} Bg4 {[%clk 00:11:30]} {[%emt 00:01:15]} 25. Rc3 {[%clk 00:17:35]}
{[%emt 00:02:16]} Bxd4+ {[%clk 00:06:47]} {[%emt 00:05:13]} 26. Qxd4 {[%clk
00:17:46]} {[%emt 00:00:18]} Qe7 {[%clk 00:06:34]} {[%emt 00:00:43]} 27. Ree3
{[%clk 00:17:16]} {[%emt 00:01:01]} Rea8 {[%clk 00:06:55]} {[%emt 00:00:09]} 28.
Bf1 {[%clk 00:16:52]} {[%emt 00:00:53]} Kg8 {[%clk 00:06:42]} {[%emt 00:00:43]}
29. Bb5 {[%clk 00:13:44]} {[%emt 00:03:39]} Bd7 {[%clk 00:06:59]} {[%emt
00:00:13]} 30. Bd3 {[%clk 00:14:05]} {[%emt 00:00:09]} Qf8 {[%clk 00:06:54]}
{[%emt 00:00:36]} 31. Kf2 {[%clk 00:09:35]} {[%emt 00:05:00]} Qg7 {[%clk
00:06:35]} {[%emt 00:00:49]} 32. Qxg7+ {[%clk 00:09:37]} {[%emt 00:00:29]} Kxg7
{[%clk 00:06:59]} {[%emt 00:00:06]} 33. Re1 {[%clk 00:10:04]} {[%emt 00:00:02]}
Rc8 {[%clk 00:05:53]} {[%emt 00:01:36]} 34. Rec1 {[%clk 00:08:23]} {[%emt
00:02:11]} Kf6 {[%clk 00:05:23]} {[%emt 00:00:59]} 35. Ke3 {[%clk 00:08:10]}
{[%emt 00:00:44]} Ke7 {[%clk 00:02:55]} {[%emt 00:02:58]} 36. e5 {[%clk
00:06:57]} {[%emt 00:01:43]} b5 {[%clk 00:02:06]} {[%emt 00:01:19]} 37. Kd2
{[%clk 00:02:02]} {[%emt 00:05:25]} Be8 {[%clk 00:01:13]} {[%emt 00:01:23]} 38.
Be4 {[%clk 00:01:09]} {[%emt 00:01:23]} Bd7 {[%clk 00:01:14]} {[%emt 00:00:29]}
39. Kc2 {[%clk 00:01:07]} {[%emt 00:00:32]} Be8 {[%clk 00:00:58]} {[%emt
00:00:46]} 40. Kb3 {[%clk 00:00:59]} {[%emt 00:00:38]} Bd7 {[%clk 00:01:03]}
{[%emt 00:00:25]} 41. Bd3 {[%clk 00:26:51]} {[%emt 00:04:38]} Be8 {[%clk
00:29:14]} {[%emt 00:02:18]} 42. Be2 {[%clk 00:19:18]} {[%emt 00:08:03]} Bd7
{[%clk 00:28:37]} {[%emt 00:01:07]} 43. Bf1 {[%clk 00:19:06]} {[%emt 00:00:42]}
f6 {[%clk 00:22:08]} {[%emt 00:06:59]} 44. e6 {[%clk 00:18:31]} {[%emt
00:01:06]} Be8 {[%clk 00:22:23]} {[%emt 00:00:15]} 45. f5 {[%clk 00:18:56]}
{[%emt 00:00:05]} g5 {[%clk 00:15:41]} {[%emt 00:07:12]} 46. g4 {[%clk
00:19:01]} {[%emt 00:00:25]} hxg4 {[%clk 00:14:58]} {[%emt 00:01:12]} 47. h5
{[%clk 00:18:07]} {[%emt 00:01:24]} Kf8 {[%clk 00:13:41]} {[%emt 00:01:47]} 48.
h6 {[%clk 00:18:12]} {[%emt 00:00:25]} Kg8 {[%clk 00:13:51]} {[%emt 00:00:20]}
49. Be2 {[%clk 00:16:31]} {[%emt 00:02:11]} Kh7 {[%clk 00:13:52]} {[%emt
00:00:28]} 50. Bxg4 {[%clk 00:16:47]} {[%emt 00:00:14]} c5 {[%clk 00:08:38]}
{[%emt 00:05:44]} 51. dxc6 {[%clk 00:13:06]} {[%emt 00:04:12]} Rac7 {[%clk
00:08:35]} {[%emt 00:00:32]} 52. Bf3 {[%clk 00:12:02]} {[%emt 00:01:34]} g4
{[%clk 00:07:30]} {[%emt 00:01:35]} 53. Bxg4 {[%clk 00:11:51]} {[%emt
00:00:41]} Rxc6 {[%clk 00:07:49]} {[%emt 00:00:11]} 54. Rxc6 {[%clk 00:10:37]}
{[%emt 00:01:44]} Rxc6 {[%clk 00:08:12]} {[%emt 00:00:06]} 55. Rh1 {[%clk
00:06:27]} {[%emt 00:04:41]} Rc4 {[%clk 00:06:17]} {[%emt 00:02:25]} 56. Bh5
{[%clk 00:06:53]} {[%emt 00:00:03]} Bxh5 {[%clk 00:05:35]} {[%emt 00:01:12]} 57.
Rxh5 {[%clk 00:07:19]} {[%emt 00:00:03]} d5 {[%clk 00:04:34]} {[%emt 00:01:31]}
58. Rh2 {[%clk 00:06:56]} {[%emt 00:00:53]} Re4 {[%clk 00:02:57]} {[%emt
00:02:07]} 59. Kc3 {[%clk 00:06:31]} {[%emt 00:00:56]} 1-0